[Event "Vetern-SM 50+ 2025"]
[Site "Uppsala, Sweden"]
[Date "2025.07.02"]
[Round "5.3"]
[White "Johansen, Peter"]
[Black "Svensson, Hakan"]
[Result "1-0"]
[TimeControl "90 min for 40 move + 30 min with an increment of 30 sec starting move 1"]
[WhiteFideId "1723944"]
[BlackFideId "1714201"]
[WhiteElo "2104"]
[BlackElo "2004"]

1. e4 {[%clk 01:30:53]} {[%emt 00:00:07]} e6 {[%clk 01:30:52]} {[%emt
00:00:09]} 2. d4 {[%clk 01:31:00]} {[%emt 00:00:22]} d5 {[%clk 01:31:15]}
{[%emt 00:00:06]} 3. Nd2 {[%clk 01:31:15]} {[%emt 00:00:16]} dxe4 {[%clk
01:30:28]} {[%emt 00:01:16]} 4. Nxe4 {[%clk 01:31:40]} {[%emt 00:00:06]} Bd7
{[%clk 01:30:54]} {[%emt 00:00:03]} 5. Nf3 {[%clk 01:28:01]} {[%emt 00:04:10]}
Bc6 {[%clk 01:31:17]} {[%emt 00:00:07]} 6. Bd3 {[%clk 01:25:06]} {[%emt
00:03:25]} Nd7 {[%clk 01:31:39]} {[%emt 00:00:07]} 7. c3 {[%clk 01:24:51]}
{[%emt 00:00:45]} Ngf6 {[%clk 01:31:22]} {[%emt 00:00:46]} 8. Qe2 {[%clk
01:23:43]} {[%emt 00:01:40]} Be7 {[%clk 01:29:40]} {[%emt 00:02:12]} 9. O-O
{[%clk 01:17:23]} {[%emt 00:06:50]} O-O {[%clk 01:27:44]} {[%emt 00:02:25]} 10.
Re1 {[%clk 01:15:14]} {[%emt 00:02:39]} Bxe4 {[%clk 01:18:42]} {[%emt
00:09:31]} 11. Bxe4 {[%clk 01:15:36]} {[%emt 00:00:09]} Nxe4 {[%clk 01:19:09]}
{[%emt 00:00:03]} 12. Qxe4 {[%clk 01:16:00]} {[%emt 00:00:06]} c6 {[%clk
01:19:29]} {[%emt 00:00:11]} 13. Bf4 {[%clk 01:07:28]} {[%emt 00:09:02]} Qa5
{[%clk 01:13:26]} {[%emt 00:06:32]} 14. Ne5 {[%clk 01:04:15]} {[%emt 00:03:43]}
Nf6 {[%clk 01:03:00]} {[%emt 00:10:56]} 15. Qe2 {[%clk 01:03:54]} {[%emt
00:00:52]} Rfe8 {[%clk 00:59:25]} {[%emt 00:04:04]} 16. g4 {[%clk 01:00:07]}
{[%emt 00:04:18]} Nd5 {[%clk 00:41:26]} {[%emt 00:18:28]} 17. Bd2 {[%clk
01:00:03]} {[%emt 00:00:35]} Qd8 {[%clk 00:41:36]} {[%emt 00:00:19]} 18. c4
{[%clk 00:57:30]} {[%emt 00:03:04]} Nb6 {[%clk 00:41:44]} {[%emt 00:00:20]} 19.
Ba5 {[%clk 00:50:27]} {[%emt 00:07:35]} Bf6 {[%clk 00:36:59]} {[%emt 00:05:13]}
20. Rad1 {[%clk 00:42:43]} {[%emt 00:08:15]} Qe7 {[%clk 00:32:42]} {[%emt
00:04:47]} 21. b3 {[%clk 00:40:01]} {[%emt 00:03:13]} Qa3 {[%clk 00:28:09]}
{[%emt 00:05:02]} 22. Bc3 {[%clk 00:37:48]} {[%emt 00:02:43]} Rad8 {[%clk
00:26:45]} {[%emt 00:01:54]} 23. Qb2 {[%clk 00:36:51]} {[%emt 00:01:27]} Qxb2
{[%clk 00:21:00]} {[%emt 00:06:15]} 24. Bxb2 {[%clk 00:37:16]} {[%emt
00:00:05]} Bxe5 {[%clk 00:21:26]} {[%emt 00:00:05]} 25. dxe5 {[%clk 00:33:31]}
{[%emt 00:04:15]} Nc8 {[%clk 00:21:40]} {[%emt 00:00:15]} 26. f4 {[%clk
00:32:56]} {[%emt 00:01:05]} g6 {[%clk 00:20:45]} {[%emt 00:01:25]} 27. Kf2
{[%clk 00:32:23]} {[%emt 00:01:04]} c5 {[%clk 00:20:00]} {[%emt 00:01:14]} 28.
Ba3 {[%clk 00:26:26]} {[%emt 00:06:29]} b6 {[%clk 00:20:23]} {[%emt 00:00:08]}
29. b4 {[%clk 00:25:50]} {[%emt 00:01:05]} cxb4 {[%clk 00:18:55]} {[%emt
00:01:58]} 30. Bxb4 {[%clk 00:26:18]} {[%emt 00:00:02]} Kg7 {[%clk 00:15:27]}
{[%emt 00:03:58]} 31. c5 {[%clk 00:23:02]} {[%emt 00:03:46]} Ne7 {[%clk
00:14:46]} {[%emt 00:01:10]} 32. cxb6 {[%clk 00:19:40]} {[%emt 00:03:53]} Nd5
{[%clk 00:14:48]} {[%emt 00:00:28]} 33. Bd6 {[%clk 00:18:53]} {[%emt 00:01:17]}
axb6 {[%clk 00:14:01]} {[%emt 00:01:17]} 34. Rd4 {[%clk 00:16:26]} {[%emt
00:02:57]} Rc8 {[%clk 00:10:33]} {[%emt 00:03:58]} 35. Re2 {[%clk 00:14:47]}
{[%emt 00:02:08]} Rc3 {[%clk 00:08:54]} {[%emt 00:02:08]} 36. Bb4 {[%clk
00:12:26]} {[%emt 00:02:52]} Rc1 {[%clk 00:04:41]} {[%emt 00:04:39]} 37. Rb2
{[%clk 00:11:42]} {[%emt 00:01:17]} Rec8 {[%clk 00:04:38]} {[%emt 00:00:32]} 38.
a3 {[%clk 00:08:20]} {[%emt 00:03:54]} R1c2+ {[%clk 00:04:17]} {[%emt
00:00:50]} 39. Rxc2 {[%clk 00:08:29]} {[%emt 00:00:22]} Rxc2+ {[%clk 00:04:44]}
{[%emt 00:00:03]} 40. Kg3 {[%clk 00:08:18]} {[%emt 00:00:41]} Rb2 {[%clk
00:02:30]} {[%emt 00:02:41]} 41. f5 {[%clk 00:00:55]} {[%emt 00:07:55]} Rb3+
{[%clk 00:24:22]} {[%emt 00:08:36]} 42. Kf2 {[%clk 00:28:25]} {[%emt 00:03:01]}
Rb2+ {[%clk 00:24:19]} {[%emt 00:00:33]} 43. Bd2 {[%clk 00:27:49]} {[%emt
00:01:06]} Rb3 {[%clk 00:22:37]} {[%emt 00:02:12]} 44. f6+ {[%clk 00:27:29]}
{[%emt 00:00:51]} Kf8 {[%clk 00:22:35]} {[%emt 00:00:31]} 45. Rc4 {[%clk
00:27:16]} {[%emt 00:00:43]} Ke8 {[%clk 00:22:52]} {[%emt 00:00:13]} 46. Rc8+
{[%clk 00:27:42]} {[%emt 00:00:05]} Kd7 {[%clk 00:23:20]} {[%emt 00:00:02]} 47.
Rf8 {[%clk 00:28:07]} {[%emt 00:00:06]} Rh3 {[%clk 00:21:47]} {[%emt 00:02:02]}
48. Kg1 {[%clk 00:24:52]} {[%emt 00:03:45]} Rxa3 {[%clk 00:21:47]} {[%emt
00:00:31]} 49. Rxf7+ {[%clk 00:25:02]} {[%emt 00:00:19]} Ke8 {[%clk 00:22:13]}
{[%emt 00:00:05]} 50. Rxh7 {[%clk 00:25:09]} {[%emt 00:00:22]} Ra1+ {[%clk
00:22:32]} {[%emt 00:00:12]} 51. Kf2 {[%clk 00:25:34]} {[%emt 00:00:04]} Ra2
{[%clk 00:23:00]} {[%emt 00:00:02]} 52. Ke1 {[%clk 00:25:57]} {[%emt 00:00:08]}
Ra1+ {[%clk 00:22:45]} {[%emt 00:00:45]} 53. Ke2 {[%clk 00:26:18]} {[%emt
00:00:09]} Ra2 {[%clk 00:23:13]} {[%emt 00:00:03]} 54. Kd3 {[%clk 00:25:25]}
{[%emt 00:01:22]} Ra3+ {[%clk 00:22:57]} {[%emt 00:00:46]} 55. Kc4 {[%clk
00:23:49]} {[%emt 00:02:06]} Ra4+ {[%clk 00:22:46]} {[%emt 00:00:42]} 56. Kb5
{[%clk 00:24:14]} {[%emt 00:00:05]} Rxg4 {[%clk 00:20:09]} {[%emt 00:03:07]} 57.
Kc6 {[%clk 00:21:21]} {[%emt 00:03:23]} g5 {[%clk 00:08:24]} {[%emt 00:12:14]}
58. Kd6 {[%clk 00:19:32]} {[%emt 00:02:19]} Rh4 {[%clk 00:05:08]} {[%emt
00:03:47]} 59. Ra7 {[%emt 00:07:48]} 1-0

[Event "Vetern-SM 50+ 2025"]
[Site "Uppsala, Sweden"]
[Date "2025.07.02"]
[Round "5.4"]
[White "Eriksson, Kristian"]
[Black "Ivarsson, Anders"]
[Result "1-0"]
[TimeControl "90 min for 40 move + 30 min with an increment of 30 sec starting move 1"]
[WhiteFideId "1705172"]
[BlackFideId "1768158"]
[WhiteElo "1998"]
[BlackElo "1987"]

1. e4 {[%clk 01:30:53]} {[%emt 00:00:06]} c5 {[%clk 01:30:57]} {[%emt
00:00:05]} 2. Nf3 {[%clk 01:31:06]} {[%emt 00:00:16]} a6 {[%clk 01:31:22]}
{[%emt 00:00:07]} 3. Nc3 {[%clk 01:30:37]} {[%emt 00:00:57]} b5 {[%clk
01:31:46]} {[%emt 00:00:07]} 4. d4 {[%clk 01:30:12]} {[%emt 00:00:55]} cxd4
{[%clk 01:32:11]} {[%emt 00:00:06]} 5. Nxd4 {[%clk 01:29:39]} {[%emt 00:01:02]}
e6 {[%clk 01:32:34]} {[%emt 00:00:08]} 6. a3 {[%clk 01:29:37]} {[%emt
00:00:31]} Bb7 {[%clk 01:32:46]} {[%emt 00:00:18]} 7. Bd3 {[%clk 01:28:29]}
{[%emt 00:01:37]} Nc6 {[%clk 01:31:45]} {[%emt 00:01:32]} 8. Be3 {[%clk
01:24:55]} {[%emt 00:04:04]} Nf6 {[%clk 01:27:47]} {[%emt 00:04:28]} 9. O-O
{[%clk 01:23:22]} {[%emt 00:02:02]} Qc7 {[%clk 01:27:18]} {[%emt 00:01:00]} 10.
Kh1 {[%clk 01:20:24]} {[%emt 00:03:28]} b4 {[%clk 01:20:37]} {[%emt 00:07:11]}
11. axb4 {[%clk 01:18:18]} {[%emt 00:02:35]} Bxb4 {[%clk 01:20:46]} {[%emt
00:00:21]} 12. f4 {[%clk 01:10:46]} {[%emt 00:08:01]} Bxc3 {[%clk 01:10:24]}
{[%emt 00:10:52]} 13. bxc3 {[%clk 01:11:05]} {[%emt 00:00:11]} Ne7 {[%clk
01:10:29]} {[%emt 00:00:25]} 14. e5 {[%clk 01:03:25]} {[%emt 00:08:09]} Nfd5
{[%clk 01:10:29]} {[%emt 00:00:31]} 15. Bd2 {[%clk 01:03:28]} {[%emt 00:00:27]}
Nxc3 {[%clk 01:09:40]} {[%emt 00:01:20]} 16. Qe1 {[%clk 00:56:07]} {[%emt
00:07:49]} Ned5 {[%clk 01:08:41]} {[%emt 00:01:30]} 17. f5 {[%clk 00:48:41]}
{[%emt 00:07:56]} a5 {[%clk 01:02:20]} {[%emt 00:06:52]} 18. Qg3 {[%clk
00:42:54]} {[%emt 00:06:17]} g6 {[%clk 00:59:59]} {[%emt 00:02:51]} 19. fxe6
{[%clk 00:42:26]} {[%emt 00:00:58]} dxe6 {[%clk 00:59:54]} {[%emt 00:00:36]} 20.
Ra3 {[%clk 00:29:27]} {[%emt 00:13:27]} Qc5 {[%clk 00:57:48]} {[%emt 00:02:36]}
21. Bxc3 {[%clk 00:28:18]} {[%emt 00:01:39]} Qxa3 {[%clk 00:50:50]} {[%emt
00:07:28]} 22. Nb5 {[%clk 00:28:37]} {[%emt 00:00:12]} Qe7 {[%clk 00:34:44]}
{[%emt 00:16:36]} 23. Nd6+ {[%clk 00:28:20]} {[%emt 00:00:46]} Kf8 {[%clk
00:34:55]} {[%emt 00:00:20]} 24. Bd2 {[%clk 00:26:43]} {[%emt 00:02:06]} Kg7
{[%clk 00:23:45]} {[%emt 00:11:41]} 25. Bg5 {[%clk 00:22:22]} {[%emt 00:04:50]}
Qc7 {[%clk 00:21:53]} {[%emt 00:02:23]} 26. c4 {[%clk 00:18:36]} {[%emt
00:04:16]} h6 {[%clk 00:06:04]} {[%emt 00:16:18]} 27. cxd5 {[%clk 00:17:27]}
{[%emt 00:01:40]} hxg5 {[%clk 00:06:27]} {[%emt 00:00:08]} 28. dxe6 {[%clk
00:14:41]} {[%emt 00:03:16]} Raf8 {[%clk 00:03:10]} {[%emt 00:03:46]} 29. Qxg5
{[%clk 00:13:41]} {[%emt 00:01:29]} Qc6 {[%clk 00:01:14]} {[%emt 00:02:28]} 30.
Rxf7+ {[%clk 00:13:19]} {[%emt 00:00:51]} Rxf7 {[%clk 00:01:34]} {[%emt
00:00:09]} 31. Qxg6+ {[%clk 00:13:43]} {[%emt 00:00:06]} 1-0

[Event "Vetern-SM 50+ 2025"]
[Site "Uppsala, Sweden"]
[Date "2025.07.02"]
[Round "5.5"]
[White "Ljung, Rickard"]
[Black "Helin, Mikael"]
[Result "0-1"]
[TimeControl "90 min for 40 move + 30 min with an increment of 30 sec starting move 1"]
[BlackTitle "CM"]
[WhiteFideId "1740156"]
[BlackFideId "1703838"]
[WhiteElo "1972"]
[BlackElo "1929"]

1. d4 {[%clk 01:30:59]} d6 {[%clk 01:29:30]} {[%emt 00:01:31]} 2. Nf3 {[%clk
01:31:14]} {[%emt 00:00:16]} Nf6 {[%clk 01:29:37]} {[%emt 00:00:21]} 3. Bf4
{[%clk 01:31:38]} {[%emt 00:00:06]} g6 {[%clk 01:29:50]} {[%emt 00:00:18]} 4.
e3 {[%clk 01:31:58]} {[%emt 00:00:10]} Nc6 {[%clk 01:30:16]} {[%emt 00:00:04]}
5. c3 {[%clk 01:32:15]} {[%emt 00:00:13]} Bg7 {[%clk 01:30:39]} {[%emt
00:00:05]} 6. Nbd2 {[%clk 01:32:36]} {[%emt 00:00:11]} O-O {[%clk 01:30:37]}
{[%emt 00:00:32]} 7. h3 {[%clk 01:32:44]} {[%emt 00:00:22]} h6 {[%clk
01:30:39]} {[%emt 00:00:28]} 8. Be2 {[%clk 01:31:19]} {[%emt 00:01:55]} Kh8
{[%clk 01:29:27]} {[%emt 00:01:41]} 9. Qb3 {[%clk 01:30:41]} {[%emt 00:01:09]}
Nd7 {[%clk 01:29:13]} {[%emt 00:00:43]} 10. a3 {[%clk 01:29:19]} {[%emt
00:01:53]} e5 {[%clk 01:29:20]} {[%emt 00:00:23]} 11. Bh2 {[%clk 01:29:37]}
{[%emt 00:00:12]} f5 {[%clk 01:29:30]} {[%emt 00:00:20]} 12. dxe5 {[%clk
01:26:55]} {[%emt 00:03:12]} dxe5 {[%clk 01:29:40]} {[%emt 00:00:20]} 13. Rd1
{[%clk 01:24:36]} {[%emt 00:02:50]} Qe7 {[%clk 01:29:36]} {[%emt 00:00:31]} 14.
O-O {[%clk 01:24:43]} {[%emt 00:00:24]} g5 {[%clk 01:29:45]} {[%emt 00:00:22]}
15. Qc2 {[%clk 01:24:15]} {[%emt 00:00:59]} a5 {[%clk 01:26:16]} {[%emt
00:03:58]} 16. Nb1 {[%clk 01:19:57]} {[%emt 00:04:48]} a4 {[%clk 01:25:34]}
{[%emt 00:01:12]} 17. c4 {[%clk 01:19:47]} {[%emt 00:00:40]} Nc5 {[%clk
01:25:43]} {[%emt 00:00:20]} 18. Nc3 {[%clk 01:19:33]} {[%emt 00:00:45]} f4
{[%clk 01:25:08]} {[%emt 00:01:05]} 19. Nd5 {[%clk 01:12:51]} {[%emt 00:07:12]}
Qf7 {[%clk 01:25:24]} {[%emt 00:00:12]} 20. Nc3 {[%clk 00:53:46]} {[%emt
00:19:37]} Bf5 {[%clk 01:22:25]} {[%emt 00:03:29]} 21. e4 {[%clk 00:52:28]}
{[%emt 00:01:48]} Be6 {[%clk 01:19:41]} {[%emt 00:03:14]} 22. Nb5 {[%clk
00:47:23]} {[%emt 00:05:36]} Bf6 {[%clk 01:16:35]} {[%emt 00:03:35]} 23. Ne1
{[%clk 00:38:11]} {[%emt 00:09:42]} Nb3 {[%clk 01:14:47]} {[%emt 00:02:18]} 24.
f3 {[%clk 00:28:45]} {[%emt 00:09:57]} Nbd4 {[%clk 01:13:52]} {[%emt 00:01:24]}
25. Nxd4 {[%clk 00:26:51]} {[%emt 00:02:24]} Nxd4 {[%clk 01:14:13]} {[%emt
00:00:10]} 26. Rxd4 {[%clk 00:26:59]} {[%emt 00:00:22]} exd4 {[%clk 01:14:27]}
{[%emt 00:00:15]} 27. Bd3 {[%clk 00:27:03]} {[%emt 00:00:27]} c5 {[%clk
01:12:58]} {[%emt 00:01:59]} 28. Rf2 {[%clk 00:26:54]} {[%emt 00:00:39]} Rfc8
{[%clk 01:11:58]} {[%emt 00:01:28]} 29. e5 {[%clk 00:23:47]} {[%emt 00:03:39]}
Bd8 {[%clk 01:10:17]} {[%emt 00:02:10]} 30. Bg6 {[%clk 00:22:20]} {[%emt
00:01:57]} Qg8 {[%clk 01:10:14]} {[%emt 00:00:33]} 31. h4 {[%clk 00:21:01]}
{[%emt 00:01:50]} Bxc4 {[%clk 01:08:24]} {[%emt 00:02:19]} 32. hxg5 {[%clk
00:21:22]} {[%emt 00:00:10]} hxg5 {[%clk 01:08:36]} {[%emt 00:00:18]} 33. g3
{[%clk 00:21:18]} {[%emt 00:00:34]} Ba5 {[%clk 01:07:52]} {[%emt 00:01:15]} 34.
Ng2 {[%clk 00:20:06]} {[%emt 00:01:42]} d3 {[%clk 01:04:19]} {[%emt 00:04:02]}
35. Bxd3 {[%clk 00:18:47]} {[%emt 00:01:51]} Bb3 {[%clk 01:04:25]} {[%emt
00:00:23]} 36. Qc1 {[%clk 00:18:21]} {[%emt 00:00:55]} c4 {[%clk 01:03:29]}
{[%emt 00:01:27]} 37. Bf1 {[%clk 00:17:55]} {[%emt 00:00:55]} Rd8 {[%clk
01:02:41]} {[%emt 00:01:18]} 38. gxf4 {[%emt 00:00:17]} g4 {[%clk 01:00:42]}
{[%emt 00:02:28]} 39. fxg4 {[%clk 00:16:37]} {[%emt 00:02:02]} Qxg4 {[%clk
00:56:07]} {[%emt 00:05:04]} 40. Be2 {[%clk 00:15:31]} {[%emt 00:01:37]} Qf5
{[%clk 00:53:06]} {[%emt 00:03:30]} 41. Qe3 {[%clk 00:13:28]} {[%emt 00:02:34]}
Ra6 {[%clk 00:45:34]} {[%emt 00:08:03]} 42. Qg3 {[%clk 00:11:23]} {[%emt
00:02:34]} Rh6 {[%clk 00:43:17]} {[%emt 00:02:46]} 43. Qg5 {[%clk 00:00:56]}
{[%emt 00:10:57]} Qh3 {[%clk 00:43:08]} {[%emt 00:00:39]} 44. Qg3 {[%clk
00:28:05]} {[%emt 00:03:21]} Bb6 {[%emt 00:02:17]} 0-1

[Event "Vetern-SM 50+ 2025"]
[Site "Uppsala, Sweden"]
[Date "2025.07.02"]
[Round "5.6"]
[White "Karlsson, Patrik"]
[Black "Tobiasson, Bjorn"]
[Result "1-0"]
[TimeControl "90 min for 40 move + 30 min with an increment of 30 sec starting move 1"]
[WhiteFideId "1710834"]
[BlackFideId "1773682"]
[WhiteElo "1923"]
[BlackElo "1884"]

1. e4 {[%clk 01:30:57]} {[%emt 00:00:03]} c6 {[%clk 01:30:52]} {[%emt
00:00:10]} 2. d4 {[%clk 01:31:18]} {[%emt 00:00:08]} d5 {[%clk 01:31:17]}
{[%emt 00:00:05]} 3. e5 {[%clk 01:31:40]} {[%emt 00:00:07]} Bf5 {[%clk
01:31:41]} {[%emt 00:00:06]} 4. Nf3 {[%clk 01:31:23]} {[%emt 00:00:48]} e6
{[%clk 01:32:02]} {[%emt 00:00:09]} 5. Be2 {[%clk 01:31:05]} {[%emt 00:00:48]}
c5 {[%clk 01:32:12]} {[%emt 00:00:21]} 6. Be3 {[%clk 01:29:38]} {[%emt
00:01:57]} cxd4 {[%clk 01:32:31]} {[%emt 00:00:10]} 7. Nxd4 {[%clk 01:29:47]}
{[%emt 00:00:22]} Ne7 {[%clk 01:32:42]} {[%emt 00:00:19]} 8. Nd2 {[%clk
01:16:24]} {[%emt 00:13:53]} Nbc6 {[%clk 01:28:39]} {[%emt 00:04:32]} 9. f4
{[%clk 01:12:20]} {[%emt 00:04:34]} Nxd4 {[%clk 01:23:29]} {[%emt 00:05:40]} 10.
Bxd4 {[%clk 01:12:41]} {[%emt 00:00:10]} Nc6 {[%clk 01:23:51]} {[%emt
00:00:08]} 11. Nf3 {[%clk 01:08:26]} {[%emt 00:04:45]} Be7 {[%clk 01:18:34]}
{[%emt 00:05:47]} 12. c3 {[%clk 00:57:23]} {[%emt 00:11:33]} O-O {[%clk
01:16:07]} {[%emt 00:02:57]} 13. O-O {[%clk 00:53:03]} {[%emt 00:04:51]} h6
{[%clk 01:07:25]} {[%emt 00:09:12]} 14. Bd3 {[%clk 00:50:16]} {[%emt 00:03:17]}
Bxd3 {[%clk 01:06:53]} {[%emt 00:01:04]} 15. Qxd3 {[%clk 00:50:38]} {[%emt
00:00:07]} Qd7 {[%clk 00:56:09]} {[%emt 00:11:14]} 16. Kh1 {[%clk 00:47:10]}
{[%emt 00:03:57]} h5 {[%clk 00:49:52]} {[%emt 00:06:47]} 17. Rae1 {[%clk
00:38:23]} {[%emt 00:09:17]} g6 {[%clk 00:47:01]} {[%emt 00:03:21]} 18. Rg1
{[%clk 00:31:05]} {[%emt 00:07:48]} Nxd4 {[%clk 00:41:05]} {[%emt 00:06:27]} 19.
Nxd4 {[%clk 00:30:53]} {[%emt 00:00:41]} Bc5 {[%clk 00:40:53]} {[%emt
00:00:42]} 20. g4 {[%clk 00:30:00]} {[%emt 00:01:23]} Bxd4 {[%clk 00:40:12]}
{[%emt 00:01:11]} 21. cxd4 {[%clk 00:29:27]} {[%emt 00:01:03]} hxg4 {[%clk
00:37:39]} {[%emt 00:03:04]} 22. Rxg4 {[%clk 00:29:47]} {[%emt 00:00:10]} Kg7
{[%clk 00:36:09]} {[%emt 00:01:59]} 23. Reg1 {[%clk 00:28:42]} {[%emt
00:01:34]} Qe8 {[%clk 00:36:21]} {[%emt 00:00:19]} 24. f5 {[%clk 00:25:33]}
{[%emt 00:03:40]} exf5 {[%clk 00:36:42]} {[%emt 00:00:09]} 25. Qxf5 {[%clk
00:25:53]} {[%emt 00:00:09]} Qe6 {[%clk 00:28:43]} {[%emt 00:08:30]} 26. Qxe6
{[%clk 00:25:36]} {[%emt 00:00:46]} fxe6 {[%clk 00:29:12]} {[%emt 00:00:02]} 27.
Rxg6+ {[%clk 00:25:48]} {[%emt 00:00:18]} Kf7 {[%clk 00:28:35]} {[%emt
00:01:06]} 28. Rf6+ {[%clk 00:25:27]} {[%emt 00:00:50]} Ke8 {[%clk 00:27:20]}
{[%emt 00:01:46]} 29. Rxe6+ {[%clk 00:25:15]} {[%emt 00:00:43]} Kd8 {[%clk
00:26:15]} {[%emt 00:01:36]} 30. Rd6+ {[%clk 00:25:18]} {[%emt 00:00:26]} 1-0

[Event "Vetern-SM 50+ 2025"]
[Site "Uppsala, Sweden"]
[Date "2025.07.02"]
[Round "5.7"]
[White "Bergfalk, Jonas"]
[Black "Uneson, Marcus"]
[Result "1-0"]
[TimeControl "90 min for 40 move + 30 min with an increment of 30 sec starting move 1"]
[WhiteFideId "1703986"]
[BlackFideId "1730509"]
[WhiteElo "2030"]
[BlackElo "2118"]

1. d4 {[%clk 01:26:58]} {[%emt 00:04:01]} e6 {[%emt 00:01:04]} 2. c4 {[%clk
01:27:20]} f5 {[%clk 01:30:10]} {[%emt 00:00:24]} 3. g3 {[%clk 01:27:23]}
{[%emt 00:00:27]} Nf6 {[%clk 01:29:46]} {[%emt 00:00:55]} 4. Bg2 {[%clk
01:27:45]} {[%emt 00:00:07]} Bb4+ {[%clk 01:29:02]} {[%emt 00:01:15]} 5. Bd2
{[%clk 01:26:53]} {[%emt 00:01:21]} a5 {[%clk 01:26:02]} {[%emt 00:03:30]} 6.
Nf3 {[%clk 01:27:10]} {[%emt 00:00:12]} O-O {[%clk 01:25:14]} {[%emt 00:01:19]}
7. O-O {[%clk 01:27:30]} {[%emt 00:00:10]} Ne4 {[%clk 01:20:39]} {[%emt
00:05:05]} 8. a3 {[%clk 01:23:13]} {[%emt 00:04:48]} Be7 {[%clk 01:20:38]}
{[%emt 00:00:30]} 9. Nc3 {[%clk 01:23:32]} {[%emt 00:00:12]} Nxd2 {[%clk
01:18:48]} {[%emt 00:02:19]} 10. Qxd2 {[%clk 01:22:46]} {[%emt 00:01:16]} a4
{[%clk 01:11:40]} {[%emt 00:07:38]} 11. Qc2 {[%clk 01:18:54]} {[%emt 00:04:22]}
Qe8 {[%clk 01:10:03]} {[%emt 00:02:07]} 12. Nxa4 {[%clk 01:17:32]} {[%emt
00:01:52]} Qh5 {[%clk 01:05:12]} {[%emt 00:05:21]} 13. Nc3 {[%clk 01:06:11]}
{[%emt 00:11:51]} g5 {[%clk 01:00:52]} {[%emt 00:04:50]} 14. Rfe1 {[%clk
01:03:38]} {[%emt 00:03:02]} Ra6 {[%clk 00:55:32]} {[%emt 00:05:51]} 15. e3
{[%clk 00:52:45]} {[%emt 00:11:23]} e5 {[%clk 00:49:02]} {[%emt 00:07:01]} 16.
Nxe5 {[%clk 00:39:16]} {[%emt 00:13:58]} Rh6 {[%clk 00:48:56]} {[%emt
00:00:37]} 17. f4 {[%clk 00:39:26]} {[%emt 00:00:19]} Kh8 {[%clk 00:28:59]}
{[%emt 00:20:27]} 18. Bf3 {[%clk 00:35:39]} {[%emt 00:04:17]} g4 {[%clk
00:27:15]} {[%emt 00:02:14]} 19. Bh1 {[%clk 00:35:56]} {[%emt 00:00:12]} d6
{[%clk 00:25:42]} {[%emt 00:02:04]} 20. Nd3 {[%clk 00:36:07]} {[%emt 00:00:18]}
c6 {[%clk 00:25:36]} {[%emt 00:00:38]} 21. b4 {[%clk 00:31:36]} {[%emt
00:05:01]} Nd7 {[%clk 00:24:05]} {[%emt 00:02:00]} 22. b5 {[%clk 00:31:15]}
{[%emt 00:00:52]} Rg8 {[%clk 00:21:53]} {[%emt 00:02:42]} 23. bxc6 {[%clk
00:30:26]} {[%emt 00:01:18]} bxc6 {[%clk 00:22:22]} {[%emt 00:00:02]} 24. Bxc6
{[%clk 00:29:49]} {[%emt 00:01:07]} Bh4 {[%clk 00:22:34]} {[%emt 00:00:17]} 25.
Bg2 {[%clk 00:27:57]} {[%emt 00:02:21]} Bxg3 {[%clk 00:15:42]} {[%emt
00:07:24]} 26. hxg3 {[%clk 00:28:00]} {[%emt 00:00:26]} Qh2+ {[%clk 00:16:05]}
{[%emt 00:00:07]} 27. Kf2 {[%clk 00:27:48]} {[%emt 00:00:42]} Rh3 {[%clk
00:16:26]} {[%emt 00:00:10]} 28. Ne2 {[%clk 00:26:03]} {[%emt 00:02:15]} Nf6
{[%clk 00:16:49]} {[%emt 00:00:07]} 29. Rh1 {[%clk 00:26:10]} {[%emt 00:00:23]}
Ne4+ {[%clk 00:17:05]} {[%emt 00:00:14]} 30. Kf1 {[%clk 00:26:12]} {[%emt
00:00:26]} Nxg3+ {[%clk 00:15:39]} {[%emt 00:01:56]} 31. Nxg3 {[%clk 00:26:32]}
{[%emt 00:00:10]} Qxg3 {[%clk 00:15:47]} {[%emt 00:00:22]} 32. Qf2 {[%clk
00:25:14]} {[%emt 00:01:48]} Qxf2+ {[%clk 00:10:40]} {[%emt 00:05:38]} 33. Kxf2
{[%clk 00:25:22]} {[%emt 00:00:21]} g3+ {[%clk 00:10:05]} {[%emt 00:01:05]} 34.
Kf3 {[%clk 00:21:02]} {[%emt 00:04:50]} Rh2 {[%clk 00:07:12]} {[%emt 00:03:22]}
35. Rxh2 {[%clk 00:20:32]} {[%emt 00:01:01]} gxh2 {[%clk 00:07:40]} {[%emt
00:00:02]} 36. Rh1 {[%clk 00:20:25]} {[%emt 00:00:36]} Ba6 {[%clk 00:06:57]}
{[%emt 00:01:13]} 37. Rxh2 {[%clk 00:20:13]} {[%emt 00:00:42]} Bxc4 {[%emt
00:00:11]} 38. Bf1 {[%clk 00:15:23]} {[%emt 00:05:19]} Bd5+ {[%clk 00:05:30]}
{[%emt 00:02:19]} 39. Kf2 {[%clk 00:14:18]} {[%emt 00:01:34]} Ra8 {[%clk
00:05:19]} {[%emt 00:00:41]} 40. Bg2 {[%clk 00:13:53]} {[%emt 00:00:54]} Be4
{[%clk 00:04:00]} {[%emt 00:01:50]} 41. Bxe4 {[%clk 00:13:50]} {[%emt
00:00:32]} fxe4 {[%clk 00:04:29]} {[%emt 00:00:03]} 42. Ne1 {[%clk 00:13:18]}
{[%emt 00:01:02]} Rxa3 {[%clk 00:04:55]} {[%emt 00:00:03]} 43. Ng2 {[%clk
00:13:38]} {[%emt 00:00:09]} Kg7 {[%clk 00:04:21]} {[%emt 00:01:05]} 44. Rh5
{[%clk 00:13:21]} {[%emt 00:00:47]} Kg6 {[%clk 00:02:32]} {[%emt 00:02:19]} 45.
Rd5 {[%emt 00:00:58]} h5 {[%clk 00:02:21]} 46. Rxd6+ {[%clk 00:13:55]} {[%emt
00:00:09]} Kf5 {[%clk 00:02:50]} {[%emt 00:00:02]} 47. Rh6 {[%clk 00:13:57]}
{[%emt 00:00:27]} Kg4 {[%clk 00:03:02]} {[%emt 00:00:18]} 48. Rg6+ {[%clk
00:13:43]} {[%emt 00:00:45]} Kh3 {[%clk 00:03:30]} {[%emt 00:00:02]} 49. f5
{[%clk 00:13:15]} {[%emt 00:00:58]} Ra2+ {[%clk 00:03:18]} {[%emt 00:00:42]} 50.
Ke1 {[%clk 00:13:26]} {[%emt 00:00:18]} Kh2 {[%clk 00:28:36]} {[%emt 00:05:11]}
51. Nf4 {[%clk 00:43:30]} {[%emt 00:00:27]} h4 {[%clk 00:28:40]} {[%emt
00:00:26]} 52. f6 {[%clk 00:43:04]} {[%emt 00:00:55]} h3 {[%clk 00:27:26]}
{[%emt 00:01:45]} 53. Rh6 {[%clk 00:40:49]} {[%emt 00:02:45]} Ra7 {[%clk
00:25:05]} {[%emt 00:02:50]} 54. Rxh3+ {[%clk 00:41:10]} {[%emt 00:00:10]} Kg1
{[%clk 00:25:34]} {[%emt 00:00:02]} 55. Rg3 {[%clk 00:41:20]} {[%emt 00:00:20]}
1-0